fUST/lending_fUST_20240111
["ID","MTS","AMOUNT","RATE_DAILY","PERIOD"]
[311164981,1704953440769,-5000.0,0.0003,2]
[311164982,1704953440778,-5000.0,0.0003,2]
[311164983,1704953440787,-5000.0,0.0003,2]
[311164984,1704953440796,-5000.0,0.0003,2]
[311164985,1704953440805,-5000.0,0.0003,2]
[311164986,1704953440814,-5000.0,0.0003,2]
[311164987,1704953440823,-2438.96,0.0003,2]
[311164988,1704953440833,-155.18046676,0.0003,4]
[311164989,1704953440841,-686.8051383,0.0003,4]
[311164990,1704953440850,-1200.0,0.0003,4]
[311164991,1704953440860,-2800.0,0.0003,2]
[311164992,1704953440870,-11908.01426953,0.0003,5]
[311164993,1704953440881,-1283.53509,0.0003,2]
[311164994,1704953440890,-1283.53509,0.0003,2]
[311164995,1704953440899,-200.0,0.0003,4]
[311164996,1704953440908,-1500.0,0.0003,2]
[311164997,1704953440917,-5518.496776,0.0003,2]
[311164998,1704953440926,-5518.496776,0.0003,2]
[311164999,1704953440936,-192.014833,0.0003,2]
[311165000,1704953440945,-192.014833,0.0003,2]
[311165001,1704953440954,-275.0,0.0003,2]
[311165002,1704953440963,-31920.09410148,0.0003,4]
[311165003,1704953440975,-38379.93475574,0.00030036,3]
[311165004,1704953440984,-429.54878232,0.00030036,2]
[311165005,1704953440993,-152.31502045,0.00030087,7]
[311165006,1704953441003,-2000.0,0.000301,2]
[311165007,1704953441012,-2000.0,0.000301,2]
[311165008,1704953441025,-2000.0,0.0003011,2]
[311165009,1704953441034,-2000.0,0.0003011,2]
[311165010,1704953441044,-2000.0,0.0003012,2]
[311165011,1704953441053,-2000.0,0.0003012,2]
[311165012,1704953441062,-151.04078101,0.00030128,2]
[311165013,1704953441071,-2000.0,0.0003013,2]
[311165014,1704953441170,-2000.0,0.0003013,2]
[311165015,1704953441180,-3509.04798518,0.00030134,2]
[311165016,1704953441196,-2009.44879082,0.00030134,2]
[311165017,1704953441206,-5518.496776,0.00030134,2]
[311165018,1704953441216,-192.014833,0.00030134,2]
[311165019,1704953441226,-192.014833,0.00030134,2]
[311165020,1704953441235,-2290.87429006,0.00030134,4]
[311165021,1704953441248,-15005.16197392,0.00030134,4]
[311165022,1704953441258,-401.25015597,0.00030134,4]
[311165023,1704953441268,-4806.8279034,0.00030135,4]
[311165024,1704953441278,-1283.53509,0.00030136,2]
[311165025,1704953441287,-1283.53509,0.00030136,2]
[311165026,1704953441297,-1283.53509,0.00030136,2]
[311165027,1704953441307,-1283.53509,0.00030136,2]
[311165028,1704953441317,-1283.53509,0.00030136,2]
[311165029,1704953441327,-1283.53509,0.00030136,2]
[311165030,1704953441337,-5518.496776,0.00030136,2]
[311165031,1704953441346,-5518.496776,0.00030136,2]
[311165032,1704953441355,-5518.496776,0.00030136,2]
[311165033,1704953441364,-5518.496776,0.00030136,2]
[311165034,1704953441374,-192.014833,0.00030136,2]
[311165035,1704953441386,-192.014833,0.00030136,2]
[311165036,1704953441396,-192.014833,0.00030136,2]
[311165037,1704953441405,-192.014833,0.00030136,2]
[311165038,1704953441415,-702.30354234,0.00030136,4]
[311165039,1704953441424,-500.0,0.00030136,2]
[311165040,1704953441433,-500.0,0.00030136,2]
[311165041,1704953441443,-500.0,0.00030136,2]
[311165042,1704953441452,-500.0,0.00030136,2]
[311165043,1704953441462,-500.0,0.00030136,2]
[311165044,1704953441471,-500.0,0.00030136,2]
[311165045,1704953441480,-500.0,0.00030136,2]
[311165046,1704953441490,-500.0,0.00030136,2]
[311165047,1704953441499,-500.0,0.00030136,2]
[311165048,1704953441508,-404.64629949,0.00030136,2]
[311165049,1704953441517,-500.0,0.00030136,2]
[311165050,1704953441527,-500.0,0.00030136,2]
[311165051,1704953441537,-500.0,0.00030136,2]
[311165052,1704953441546,-421.07384829,0.00030136,2]
[311165053,1704953441555,-500.0,0.00030136,2]
[311165054,1704953441565,-500.0,0.00030136,2]
[311165055,1704953441574,-573.20229012,0.00030136,2]
[311165056,1704953441583,-503.69029425,0.00030136,2]
[311165057,1704953441592,-500.0,0.00030136,2]
[311165058,1704953441601,-500.0,0.00030136,2]
[311165059,1704953441610,-500.0,0.00030136,2]
[311165060,1704953441619,-501.19999599,0.00030136,2]
[311165061,1704953441628,-500.0,0.00030136,2]
[311165062,1704953441641,-501.40685239,0.00030136,2]
[311165063,1704953441650,-500.0,0.00030136,2]
[311165064,1704953441660,-546.60647437,0.00030136,2]
[311165065,1704953441669,-384.12539335,0.00030136,2]
[311165066,1704953441678,-1000.0,0.00030136,2]
[311165067,1704953441686,-500.0,0.00030136,2]
[311165068,1704953441695,-515.14845484,0.00030136,2]
[311165069,1704953441704,-500.40558924,0.00030136,2]
[311165070,1704953441713,-500.0,0.00030136,2]
[311165071,1704953441722,-500.0,0.00030136,2]
[311165072,1704953441732,-1113.93,0.00030136,2]
[311165073,1704953441742,-510.03142022,0.00030136,2]
[311165074,1704953441752,-509.18685247,0.00030136,2]
[311165075,1704953441762,-500.0,0.00030136,2]
[311165076,1704953441771,-500.0,0.00030136,2]
[311165077,1704953441780,-500.0,0.00030136,2]
[311165078,1704953441789,-459.0460775,0.00030136,2]
[311165079,1704953441798,-544.88,0.00030136,2]
[311165080,1704953441807,-560.66390144,0.00030136,2]
[311165081,1704953441816,-500.0,0.00030136,2]
[311165082,1704953441825,-500.0,0.00030136,2]
[311165083,1704953441834,-500.0,0.00030136,2]
[311165084,1704953441843,-500.0,0.00030136,2]
[311165085,1704953441852,-500.0,0.00030136,2]
[311165086,1704953441861,-500.0,0.00030136,2]
[311165087,1704953441871,-500.0,0.00030136,2]
[311165088,1704953441882,-500.0,0.00030136,2]
[311165089,1704953441891,-281.74517376,0.00030136,2]
[311165090,1704953441900,-500.0,0.00030136,2]
[311165091,1704953441909,-504.99644365,0.00030136,30]
[311165092,1704953441918,-500.0,0.00030136,2]
[311165093,1704953441927,-177.50791319,0.00030136,2]
[311165094,1704953441936,-500.0,0.00030136,2]
[311165095,1704953441945,-509.94278174,0.00030136,2]
[311165096,1704953441954,-504.3360633,0.00030136,2]
[311165097,1704953441963,-500.0,0.00030136,2]
[311165098,1704953441972,-500.0,0.00030136,2]
[311165099,1704953441981,-156.25447643,0.00030136,2]
[311165100,1704953441990,-500.55430526,0.00030136,2]
[311165101,1704953441999,-500.0,0.00030136,2]
[311165102,1704953442010,-500.0,0.00030136,2]
[311165103,1704953442020,-500.0,0.00030136,2]
[311165104,1704953442032,-500.0,0.00030136,2]
[311165105,1704953442041,-501.48834983,0.00030136,2]
[311165106,1704953442051,-263.79702132,0.00030136,2]
[311165107,1704953442060,-500.0,0.00030136,2]
[311165108,1704953442069,-500.0,0.00030136,2]
[311165109,1704953442078,-522.97859531,0.00030136,2]
[311165110,1704953442088,-500.0,0.00030136,2]
[311165111,1704953442097,-500.0,0.00030136,2]
[311165112,1704953442107,-500.0,0.00030136,2]
[311165113,1704953442117,-500.0,0.00030136,2]
[311165114,1704953442126,-501.25420699,0.00030136,2]
[311165115,1704953442139,-500.0,0.00030136,2]
[311165116,1704953442149,-500.0,0.00030136,2]
[311165117,1704953442159,-500.0,0.00030136,2]
[311165118,1704953442169,-503.08297517,0.00030136,2]
[311165119,1704953442180,-500.0,0.00030136,2]
[311165120,1704953442189,-500.0,0.00030136,2]
[311165121,1704953442200,-842.78,0.00030136,2]
[311165122,1704953442209,-500.0,0.00030136,2]
[311165124,1704953442219,-500.0,0.00030136,2]
[311165126,1704953442229,-503.44386902,0.00030136,2]
[311165127,1704953442238,-500.0,0.00030136,2]
[311165128,1704953442248,-412.25216866,0.00030136,2]
[311165129,1704953442258,-500.0,0.00030136,2]
[311165130,1704953442268,-500.0,0.00030136,2]
[311165131,1704953442278,-500.0,0.00030136,2]
[311165132,1704953442292,-593.4206134,0.00030136,2]
[311165133,1704953442301,-500.0,0.00030136,2]
[311165134,1704953442311,-500.0,0.00030136,2]
[311165135,1704953442320,-500.0,0.00030136,2]
[311165136,1704953442329,-500.0,0.00030136,2]
[311165137,1704953442337,-500.0,0.00030136,2]
[311165138,1704953442348,-500.20971053,0.00030136,2]
[311165139,1704953442358,-500.0,0.00030136,2]
[311165140,1704953442368,-500.0,0.00030136,2]
[311165141,1704953442377,-500.0,0.00030136,2]
[311165142,1704953442392,-500.0,0.00030136,2]
[311165143,1704953442402,-554.04,0.00030136,2]
[311165144,1704953442412,-554.04,0.00030136,2]
[311165145,1704953442422,-554.04,0.00030136,2]
[311165147,1704953442431,-554.04,0.00030136,2]
[311165148,1704953442440,-500.0,0.00030136,2]
[311165149,1704953442450,-554.04,0.00030136,2]
[311165150,1704953442458,-554.04,0.00030136,2]
[311165151,1704953442467,-554.04,0.00030136,2]
[311165152,1704953442476,-554.04,0.00030136,2]
[311165154,1704953442486,-554.04,0.00030136,2]
[311165155,1704953442495,-500.0,0.00030136,2]
[311165157,1704953442504,-554.04,0.00030136,2]
[311165159,1704953442514,-554.04,0.00030136,2]
[311165160,1704953442523,-554.04,0.00030136,2]
[311165161,1704953442532,-554.04,0.00030136,2]
[311165162,1704953442541,-554.04,0.00030136,2]
[311165163,1704953442550,-554.04,0.00030136,2]
[311165164,1704953442559,-554.04,0.00030136,2]
[311165165,1704953442568,-554.04,0.00030136,2]
[311165166,1704953442577,-554.04,0.00030136,2]
[311165167,1704953442586,-554.04,0.00030136,2]
[311165168,1704953442595,-554.04,0.00030136,2]
[311165169,1704953442604,-554.04,0.00030136,2]
[311165170,1704953442613,-554.04,0.00030136,2]
[311165172,1704953442622,-554.04,0.00030136,2]
[311165173,1704953442634,-554.19020902,0.00030136,2]
[311165174,1704953442643,-764.03,0.00030136,2]
[311165175,1704953442652,-500.0,0.00030136,2]
[311165176,1704953442662,-500.0,0.00030136,2]
[311165177,1704953442670,-200.0,0.00030136,2]
[311165179,1704953442680,-500.0,0.00030136,2]
[311165180,1704953442688,-500.0,0.00030136,2]
[311165181,1704953442698,-500.0,0.00030136,2]
[311165182,1704953442706,-501.07299609,0.00030136,2]
[311165183,1704953442715,-500.0,0.00030136,2]
[311165184,1704953442724,-226.98517404,0.00030136,2]
[311165185,1704953442733,-594.76805938,0.00030136,2]
[311165186,1704953442742,-500.0,0.00030136,2]
[311165187,1704953442751,-186.76567446,0.00030136,2]
[311165188,1704953442760,-500.0,0.00030136,2]
[311165189,1704953442769,-500.0,0.00030136,2]
[311165190,1704953442778,-500.0,0.00030136,2]
[311165191,1704953442788,-500.0,0.00030136,2]
[311165193,1704953442797,-500.0,0.00030136,2]
[311165194,1704953442806,-500.0,0.00030136,2]
[311165195,1704953442815,-500.0,0.00030136,2]
[311165196,1704953442824,-500.0,0.00030136,2]
[311165197,1704953442833,-500.0,0.00030136,2]
[311165198,1704953442842,-500.0,0.00030136,2]
[311165199,1704953442852,-500.0,0.00030136,2]
[311165200,1704953442861,-500.0,0.00030136,2]
[311165201,1704953442870,-500.0,0.00030136,2]
[311165202,1704953442879,-500.0,0.00030136,2]
[311165203,1704953442891,-500.0,0.00030136,2]
[311165204,1704953442901,-500.0,0.00030136,2]
[311165205,1704953442910,-500.0,0.00030136,2]
[311165206,1704953442919,-341.22,0.00030136,2]
[311165207,1704953442928,-500.81343408,0.00030136,2]
[311165208,1704953442937,-500.0,0.00030136,2]
[311165209,1704953442946,-500.0,0.00030136,2]
[311165210,1704953442956,-500.0,0.00030136,2]
[311165211,1704953442965,-500.0,0.00030136,2]
[311165212,1704953442974,-500.0,0.00030136,2]
[311165213,1704953442983,-500.0,0.00030136,2]
[311165214,1704953442993,-500.0,0.00030136,2]
[311165215,1704953443002,-502.0635084,0.00030136,2]
[311165216,1704953443011,-500.0,0.00030136,2]
[311165217,1704953443020,-500.0,0.00030136,2]
[311165218,1704953443029,-1853.37,0.00030136,2]
[311165219,1704953443038,-500.0,0.00030136,2]
[311165220,1704953443047,-500.0,0.00030136,2]
[311165221,1704953443056,-500.0,0.00030136,2]
[311165222,1704953443065,-500.0,0.00030136,2]
[311165223,1704953443074,-500.0,0.00030136,2]
[311165224,1704953443083,-500.0,0.00030136,2]
[311165225,1704953443092,-500.0,0.00030136,2]
[311165226,1704953443100,-500.0,0.00030136,2]
[311165227,1704953443110,-277.54315261,0.00030136,2]
[311165228,1704953443119,-498.4439831,0.00030136,2]
[311165229,1704953443128,-500.0,0.00030136,2]
[311165230,1704953443224,-500.0,0.00030136,2]
[311165231,1704953443234,-500.0,0.00030136,2]
[311165232,1704953443243,-500.0,0.00030136,2]
[311165233,1704953443253,-511.70322812,0.00030136,2]
[311165234,1704953443262,-500.0,0.00030136,2]
[311165235,1704953443271,-500.0,0.00030136,2]
[311165236,1704953443281,-500.0,0.00030136,2]
[311165237,1704953443290,-500.0,0.00030136,2]
[311165238,1704953443299,-500.0,0.00030136,2]
[311165239,1704953443308,-500.0,0.00030136,2]
[311165240,1704953443318,-315.45310074,0.00030136,2]
[311165241,1704953443327,-500.0,0.00030136,2]
[311165242,1704953443336,-270.6920062,0.00030136,2]
[311165243,1704953443345,-500.0,0.00030136,2]
[311165244,1704953443354,-500.0,0.00030136,2]
[311165245,1704953443363,-500.0,0.00030136,2]
[311165246,1704953443372,-500.0,0.00030136,2]
[311165247,1704953443381,-500.0,0.00030136,2]
[311165248,1704953443393,-418.33957218,0.00030136,2]
[311165249,1704953443403,-500.0,0.00030136,2]
[311165250,1704953443411,-500.0,0.00030136,2]
[311165251,1704953443421,-474.98127692,0.00030136,2]
[311165252,1704953443430,-500.0,0.00030136,2]
[311165253,1704953443439,-642.73342,0.00030136,2]
[311165254,1704953443448,-225.87099317,0.00030136,2]
[311165255,1704953443457,-625.13,0.00030136,2]
[311165256,1704953443466,-500.0,0.00030136,2]
[311165257,1704953443475,-500.0,0.00030136,2]
[311165258,1704953443484,-329.4052217,0.00030136,2]
[311165259,1704953443493,-1215.22,0.00030136,2]
[311165260,1704953443502,-500.0,0.00030136,2]
[311165261,1704953443511,-500.0,0.00030136,2]
[311165262,1704953443519,-500.0,0.00030136,2]
[311165263,1704953443528,-501.28748838,0.00030136,2]
[311165264,1704953443537,-500.0,0.00030136,2]
[311165265,1704953443546,-500.0,0.00030136,2]
[311165266,1704953443556,-500.0,0.00030136,2]
[311165267,1704953443565,-500.0,0.00030136,2]
[311165268,1704953443575,-500.0,0.00030136,2]
[311165269,1704953443583,-500.0,0.00030136,2]
[311165270,1704953443593,-500.0,0.00030136,2]
[311165271,1704953443602,-500.53909396,0.00030136,2]
[311165272,1704953443610,-345.71155924,0.00030136,2]
[311165273,1704953443619,-203.6129773,0.00030136,2]
[311165274,1704953443629,-500.0,0.00030136,2]
[311165275,1704953443640,-569.7,0.00030136,2]
[311165276,1704953443649,-500.0,0.00030136,2]
[311165277,1704953443658,-1011.98987962,0.00030136,5]
[311165278,1704953443667,-500.0,0.00030136,2]
[311165279,1704953443676,-500.0,0.00030136,2]
[311165280,1704953443686,-500.0,0.00030136,2]
[311165281,1704953443695,-500.0,0.00030136,2]
[311165282,1704953443704,-508.57057146,0.00030136,2]
[311165283,1704953443713,-506.61528026,0.00030136,2]
[311165284,1704953443722,-500.0,0.00030136,2]
[311165285,1704953443731,-667.95,0.00030136,2]
[311165286,1704953443740,-858.42,0.00030136,2]
[311165287,1704953443750,-500.0,0.00030136,2]
[311165288,1704953443759,-500.0,0.00030136,2]
[311165289,1704953443768,-500.0,0.00030136,2]
[311165290,1704953443777,-500.0,0.00030136,2]
[311165291,1704953443786,-500.0,0.00030136,2]
[311165292,1704953443795,-500.0,0.00030136,2]
[311165293,1704953443804,-500.0,0.00030136,2]
[311165294,1704953443813,-500.0,0.00030136,2]
[311165295,1704953443822,-500.0,0.00030136,2]
[311165296,1704953443832,-500.0,0.00030136,2]
[311165297,1704953443841,-500.0,0.00030136,2]
[311165298,1704953443850,-500.0,0.00030136,2]
[311165299,1704953443859,-501.71505384,0.00030136,2]
[311165300,1704953443868,-500.0,0.00030136,2]
[311165301,1704953443878,-500.0,0.00030136,2]
[311165302,1704953443890,-500.0,0.00030136,2]
[311165303,1704953443900,-500.0,0.00030136,2]
[311165304,1704953443909,-500.0,0.00030136,2]
[311165305,1704953443919,-500.0,0.00030136,2]
[311165306,1704953443928,-500.0,0.00030136,2]
[311165307,1704953443938,-500.0,0.00030136,2]
[311165308,1704953443947,-500.0,0.00030136,2]
[311165309,1704953443957,-500.0,0.00030136,2]
[311165310,1704953443966,-503.53888354,0.00030136,2]
[311165311,1704953443975,-500.0,0.00030136,2]
[311165312,1704953443985,-500.0,0.00030136,2]
[311165313,1704953443994,-500.0,0.00030136,2]
[311165314,1704953444003,-802.18,0.00030136,2]
[311165315,1704953444017,-500.0,0.00030136,2]
[311165316,1704953444026,-500.0,0.00030136,2]
[311165317,1704953444035,-500.0,0.00030136,2]
[311165318,1704953444044,-303.4997889,0.00030136,2]
[311165319,1704953444055,-500.0,0.00030136,2]
[311165320,1704953444064,-501.00207667,0.00030136,2]
[311165321,1704953444074,-500.0,0.00030136,2]
[311165322,1704953444085,-500.0,0.00030136,2]
[311165323,1704953444095,-500.0,0.00030136,2]
[311165324,1704953444108,-500.0,0.00030136,2]
[311165325,1704953444119,-602.58,0.00030136,2]
[311165326,1704953444129,-500.0,0.00030136,2]
[311165327,1704953444146,-521.24,0.00030136,2]
[311165328,1704953444157,-500.0,0.00030136,2]
[311165329,1704953444168,-500.0,0.00030136,2]
[311165330,1704953444179,-500.0,0.00030136,2]
[311165331,1704953444189,-504.5661768,0.00030136,2]
[311165332,1704953444200,-500.0,0.00030136,2]
[311165333,1704953444211,-500.0,0.00030136,2]
[311165334,1704953444222,-651.91,0.00030136,2]
[311165335,1704953444233,-651.91,0.00030136,2]
[311165336,1704953444244,-651.91,0.00030136,2]
[311165337,1704953444254,-651.91,0.00030136,2]
[311165338,1704953444265,-651.91,0.00030136,2]
[311165339,1704953444276,-651.91,0.00030136,2]
[311165340,1704953444287,-651.91,0.00030136,2]
[311165341,1704953444299,-651.91,0.00030136,2]
[311165342,1704953444313,-651.91,0.00030136,2]
[311165343,1704953444324,-651.91,0.00030136,2]
[311165344,1704953444337,-651.91,0.00030136,2]
[311165345,1704953444348,-651.91,0.00030136,2]
[311165346,1704953444360,-651.91,0.00030136,2]
[311165347,1704953444371,-651.91,0.00030136,2]
[311165348,1704953444381,-651.91,0.00030136,2]
[311165349,1704953444395,-651.91,0.00030136,2]
[311165350,1704953444406,-330.37774473,0.00030136,2]
[311165351,1704953444417,-651.91,0.00030136,2]
[311165352,1704953444428,-651.91,0.00030136,2]
[311165353,1704953444437,-651.91,0.00030136,2]
[311165354,1704953444447,-651.91,0.00030136,2]
[311165355,1704953444457,-651.91,0.00030136,2]
[311165356,1704953444467,-651.91,0.00030136,2]
[311165357,1704953444478,-651.91,0.00030136,2]
[311165358,1704953444488,-500.0,0.00030136,2]
[311165359,1704953444498,-652.09273758,0.00030136,2]
[311165360,1704953444508,-500.0,0.00030136,2]
[311165361,1704953444517,-500.0,0.00030136,2]
[311165362,1704953444527,-500.0,0.00030136,2]
[311165363,1704953444538,-500.0,0.00030136,2]
[311165364,1704953444549,-15753.87,0.00030136,2]
[311165365,1704953444559,-500.0,0.00030136,2]
[311165366,1704953444568,-156.58977598,0.00030136,2]
[311165367,1704953444578,-496.52210292,0.00030136,2]
[311165368,1704953444588,-500.0,0.00030136,2]
[311165369,1704953444598,-5988.69,0.00030136,2]
[311165370,1704953444607,-500.0,0.00030136,2]
[311165371,1704953444617,-471.53290531,0.00030136,2]
[311165372,1704953444627,-500.0,0.00030136,2]
[311165373,1704953444638,-6372.45,0.00030136,2]
[311165374,1704953444647,-507.68147259,0.00030136,2]
[311165375,1704953444656,-502.49872204,0.00030136,2]
[311165376,1704953444666,-500.0,0.00030136,2]
[311165377,1704953444675,-500.0,0.00030136,2]
[311165378,1704953444685,-506.55738065,0.00030136,2]
[311165379,1704953444695,-500.0,0.00030136,2]
[311165380,1704953444704,-500.0,0.00030136,2]
[311165381,1704953444713,-2422.38,0.00030136,2]
[311165382,1704953444723,-3258.45,0.00030136,2]
[311165383,1704953444732,-507.78,0.00030136,2]
[311165384,1704953444742,-503.66399589,0.00030136,2]
[311165385,1704953444751,-500.0,0.00030136,2]
[311165386,1704953444761,-500.0,0.00030136,2]
[311165387,1704953444770,-411.81553534,0.00030136,2]
[311165388,1704953444779,-500.0,0.00030136,2]
[311165389,1704953444789,-500.0,0.00030136,2]
[311165390,1704953444798,-1337.74,0.00030136,2]
[311165391,1704953444807,-500.0,0.00030136,2]
[311165392,1704953444817,-1674.37,0.00030136,2]
[311165393,1704953444826,-500.0,0.00030136,2]
[311165394,1704953444835,-500.0,0.00030136,2]
[311165395,1704953444843,-500.0,0.00030136,2]
[311165396,1704953444852,-500.0,0.00030136,2]
[311165397,1704953444861,-500.0,0.00030136,2]
[311165398,1704953444870,-534.88,0.00030136,2]
[311165399,1704953444879,-500.0,0.00030136,2]
[311165400,1704953444891,-500.0,0.00030136,2]
[311165401,1704953444900,-500.0,0.00030136,2]
[311165402,1704953444909,-500.0,0.00030136,2]
[311165403,1704953444918,-500.0,0.00030136,2]
[311165404,1704953444927,-500.0,0.00030136,2]
[311165405,1704953444937,-500.0,0.00030136,2]
[311165406,1704953444946,-710.1,0.00030136,2]
[311165407,1704953444955,-500.0,0.00030136,2]
[311165408,1704953444964,-727.62,0.00030136,2]
[311165409,1704953444973,-500.0,0.00030136,2]
[311165410,1704953444982,-230.84334159,0.00030136,2]
[311165411,1704953444991,-500.0,0.00030136,2]
[311165412,1704953445001,-1076.57,0.00030136,2]
[311165413,1704953445011,-1022.97,0.00030136,2]
[311165414,1704953445020,-500.0,0.00030136,2]
[311165415,1704953445029,-500.0,0.00030136,2]
[311165416,1704953445038,-500.0,0.00030136,2]
[311165417,1704953445047,-2128.84,0.00030136,2]
[311165418,1704953445056,-500.0,0.00030136,2]
[311165419,1704953445065,-599.09,0.00030136,2]
[311165420,1704953445074,-349.44261804,0.00030136,2]
[311165421,1704953445083,-500.0,0.00030136,2]
[311165422,1704953445169,-500.0,0.00030136,2]
[311165423,1704953445178,-500.0,0.00030136,2]
[311165424,1704953445188,-500.0,0.00030136,2]
[311165425,1704953445197,-500.0,0.00030136,2]
[311165426,1704953445206,-500.0,0.00030136,2]
[311165427,1704953445215,-500.0,0.00030136,2]
[311165428,1704953445224,-500.0,0.00030136,2]
[311165429,1704953445234,-500.0,0.00030136,2]
[311165430,1704953445244,-1000.0,0.00030136,2]
[311165431,1704953445253,-500.0,0.00030136,2]
[311165433,1704953445262,-500.0,0.00030136,2]
[311165434,1704953445272,-503.58951004,0.00030136,2]
[311165435,1704953445281,-500.0,0.00030136,5]
[311165436,1704953445290,-882.12,0.00030136,2]
[311165437,1704953445300,-9964.99,0.00030136,2]
[311165438,1704953445312,-500.0,0.00030136,2]
[311165439,1704953445321,-500.0,0.00030136,2]
[311165440,1704953445330,-502.33696748,0.00030136,2]
[311165441,1704953445340,-918.7,0.00030136,2]
[311165442,1704953445349,-500.0,0.00030136,2]
[311165443,1704953445358,-500.0,0.00030136,2]
[311165444,1704953445367,-500.0,0.00030136,2]
[311165445,1704953445376,-500.0,0.00030136,2]
[311165446,1704953445385,-500.0,0.00030136,2]
[311165447,1704953445396,-505.49538568,0.00030136,2]
[311165448,1704953445405,-500.0,0.00030136,2]
[311165449,1704953445414,-500.0,0.00030136,2]
[311165450,1704953445423,-1132.53,0.00030136,2]
[311165451,1704953445433,-500.50039917,0.00030136,2]
[311165453,1704953445442,-500.0,0.00030136,2]
[311165455,1704953445451,-627.1533721,0.00030136,2]
[311165456,1704953445460,-500.0,0.00030136,2]
[311165457,1704953445469,-500.0,0.00030136,2]
[311165458,1704953445478,-500.0,0.00030136,2]
[311165459,1704953445487,-500.0,0.00030136,2]
[311165460,1704953445496,-504.42727557,0.00030136,2]
[311165461,1704953445505,-500.0,0.00030136,2]
[311165463,1704953445514,-200.61953262,0.00030136,2]
[311165465,1704953445524,-500.0,0.00030136,2]
[311165467,1704953445533,-500.0,0.00030136,2]
[311165468,1704953445543,-500.0,0.00030136,2]
[311165470,1704953445552,-500.0,0.00030136,2]
[311165471,1704953445561,-500.0,0.00030136,2]
[311165472,1704953445571,-500.0,0.00030136,2]
[311165474,1704953445580,-500.0,0.00030136,2]
[311165476,1704953445589,-1932.96,0.00030136,2]
[311165478,1704953445598,-503.18365884,0.00030136,2]
[311165479,1704953445607,-500.0,0.00030136,2]
[311165481,1704953445617,-10000.0,0.00030136,10]
[311165483,1704953445626,-507.36864681,0.00030136,2]
[311165485,1704953445635,-500.0,0.00030136,2]
[311165486,1704953445646,-500.0,0.00030136,2]
[311165488,1704953445655,-746.35,0.00030136,2]
[311165490,1704953445664,-500.0,0.00030136,2]
[311165491,1704953445673,-500.0,0.00030136,2]
[311165493,1704953445682,-500.0,0.00030136,2]
[311165494,1704953445691,-3604.77,0.00030136,2]
[311165495,1704953445700,-500.0,0.00030136,2]
[311165496,1704953445709,-501.82843532,0.00030136,2]
[311165497,1704953445718,-153.0,0.00030137,2]
[311165498,1704953445727,-153.0,0.00030137,2]
[311165499,1704953445736,-153.0,0.00030137,2]
[311165501,1704953445745,-306.0,0.00030137,2]
[311165502,1704953445754,-5000.0,0.00030137,2]
[311165504,1704953445763,-5000.0,0.00030137,2]
[311165505,1704953445773,-5000.0,0.00030137,2]
[311165506,1704953445782,-736.51066033,0.00030137,2]
[311165507,1704953445790,-5518.496776,0.00030137,2]